[Event "*** Titled Tuesday Blitz"]
[Site "Chess.com"]
[Date "2018.04.03"]
[Round "2"]
[White "Cecile-Haussernot"]
[Black "Chesscoach_Golichenko"]
[Result "0-1"]
[WhiteElo "2305"]
[BlackElo "2474"]
[TimeControl "180+2"]
[EndTime "13:21:57 PDT"]
[Termination "Chesscoach_Golichenko won by resignation"]

1. e4 {[%clk 0:03:00]} 1... c5 {[%clk 0:02:59.3]} 2. Nf3 {[%clk 0:03:00.3]} 2...
d6 {[%clk 0:02:58]} 3. d4 {[%clk 0:03:01.1]} 3... cxd4 {[%clk 0:02:59.9]} 4.
Nxd4 {[%clk 0:03:02]} 4... Nf6 {[%clk 0:03:01.4]} 5. Nc3 {[%clk 0:03:02.4]} 5...
a6 {[%clk 0:03:02.7]} 6. h3 {[%clk 0:03:01.2]} 6... e5 {[%clk 0:03:03]} 7. Nde2
{[%clk 0:03:02]} 7... Be6 {[%clk 0:03:04.3]} 8. f4 {[%clk 0:02:59.5]} 8... exf4
{[%clk 0:02:51.4]} 9. Nxf4 {[%clk 0:02:54.4]} 9... Be7 {[%clk 0:02:52.3]} 10.
Be3 {[%clk 0:02:50.2]} 10... O-O {[%clk 0:02:50.6]} 11. Qf3 {[%clk 0:02:47.7]}
11... Nc6 {[%clk 0:02:47.7]} 12. O-O-O {[%clk 0:02:47.6]} 12... Qa5 {[%clk
0:02:45.5]} 13. Kb1 {[%clk 0:02:46.2]} 13... Rac8 {[%clk 0:02:39.7]} 14. Bd2
{[%clk 0:02:43.6]} 14... Ne5 {[%clk 0:02:31.1]} 15. Ncd5 {[%clk 0:02:32.1]}
15... Qa4 {[%clk 0:01:57.1]} 16. Nxe7+ {[%clk 0:02:21.4]} 16... Kh8 {[%clk
0:01:57.6]} 17. b3 {[%clk 0:02:22.2]} 17... Qd7 {[%clk 0:01:38.9]} 18. Qf2
{[%clk 0:02:01]} 18... Qxe7 {[%clk 0:01:38.6]} 19. Qd4 {[%clk 0:02:00.2]} 19...
Nc6 {[%clk 0:01:18.9]} 20. Qd3 {[%clk 0:01:54.1]} 20... a5 {[%clk 0:01:18]} 21.
g4 {[%clk 0:01:47.5]} 21... a4 {[%clk 0:01:12.1]} 22. g5 {[%clk 0:01:46.6]}
22... axb3 {[%clk 0:01:11.3]} 23. gxf6 {[%clk 0:01:40.7]} 23... bxa2+ {[%clk
0:01:09]} 24. Ka1 {[%clk 0:01:41.1]} 24... Qxf6+ {[%clk 0:01:10]} 25. Qc3 {[%clk
0:01:32.8]} 25... Nd4 {[%clk 0:01:06.9]} 26. Nh5 {[%clk 0:01:18.4]} 26... Qe5
{[%clk 0:00:51.2]} 27. Kb2 {[%clk 0:00:38]} 27... Rxc3 {[%clk 0:00:41.2]} 28.
Bxc3 {[%clk 0:00:39.8]} 28... Qxh5 {[%clk 0:00:33.8]} 29. Rxd4 {[%clk
0:00:40.6]} 29... Qf3 {[%clk 0:00:32.5]} 30. Rg1 {[%clk 0:00:39]} 30... a1=Q+
{[%clk 0:00:32.9]} 0-1

[Event "*** Titled Tuesday Blitz"]
[Site "Chess.com"]
[Date "2018.04.03"]
[Round "2"]
[White "ilmago"]
[Black "indfraeng"]
[Result "1-0"]
[WhiteElo "1915"]
[BlackElo "1811"]
[TimeControl "180+2"]
[EndTime "13:22:28 PDT"]
[Termination "ilmago won by resignation"]

1. e4 {[%clk 0:03:01.9]} 1... c6 {[%clk 0:03:00.8]} 2. d4 {[%clk 0:02:58.8]}
2... d5 {[%clk 0:03:01.4]} 3. exd5 {[%clk 0:02:57.2]} 3... cxd5 {[%clk
0:03:03.3]} 4. c4 {[%clk 0:02:55.1]} 4... Nf6 {[%clk 0:03:03.1]} 5. Nc3 {[%clk
0:02:52.3]} 5... e6 {[%clk 0:03:04.2]} 6. Nf3 {[%clk 0:02:52.5]} 6... Be7 {[%clk
0:03:04.6]} 7. cxd5 {[%clk 0:02:46.9]} 7... Nxd5 {[%clk 0:03:04.7]} 8. Bd3
{[%clk 0:02:45.6]} 8... Nc6 {[%clk 0:03:03.6]} 9. O-O {[%clk 0:02:42.4]} 9...
O-O {[%clk 0:03:03.7]} 10. a3 {[%clk 0:02:38.4]} 10... b6 {[%clk 0:02:52]} 11.
Bc2 {[%clk 0:02:30.2]} 11... Bb7 {[%clk 0:02:46.5]} 12. Qd3 {[%clk 0:02:30.3]}
12... Nf6 {[%clk 0:02:45.3]} 13. Bg5 {[%clk 0:02:28.9]} 13... g6 {[%clk
0:02:45]} 14. Rad1 {[%clk 0:02:23.7]} 14... Nd5 {[%clk 0:02:43]} 15. Bh6 {[%clk
0:02:21.9]} 15... Re8 {[%clk 0:02:42.2]} 16. Rfe1 {[%clk 0:02:21.1]} 16... Bf6
{[%clk 0:02:40.6]} 17. Ne4 {[%clk 0:02:18.1]} 17... Bg7 {[%clk 0:02:38.6]} 18.
Bxg7 {[%clk 0:02:17.6]} 18... Kxg7 {[%clk 0:02:38.8]} 19. Neg5 {[%clk
0:02:14.2]} 19... Rc8 {[%clk 0:02:18.1]} 20. h4 {[%clk 0:02:09]} 20... Ndb4
{[%clk 0:02:14.1]} 21. axb4 {[%clk 0:01:32.8]} 21... Nxb4 {[%clk 0:02:07.5]} 22.
Qd2 {[%clk 0:01:29]} 22... Bxf3 {[%clk 0:01:48.9]} 23. Qxb4 {[%clk 0:01:21]}
23... Bxd1 {[%clk 0:01:31.8]} 24. Bxd1 {[%clk 0:01:21.4]} 24... Qe7 {[%clk
0:01:17.3]} 25. Qd2 {[%clk 0:01:14.9]} 25... Red8 {[%clk 0:01:13.7]} 26. Qe3
{[%clk 0:01:08]} 26... Qf6 {[%clk 0:01:07.9]} 27. Nf3 {[%clk 0:01:06.2]} 27...
Rc7 {[%clk 0:00:58.9]} 28. Bb3 {[%clk 0:01:06.6]} 28... Rcd7 {[%clk 0:00:58.5]}
29. Rc1 {[%clk 0:01:01.1]} 29... b5 {[%clk 0:00:36.7]} 30. Rc5 {[%clk
0:00:57.7]} 30... Qe7 {[%clk 0:00:26.9]} 31. Qe5+ {[%clk 0:00:50.2]} 31... f6
{[%clk 0:00:26.8]} 32. Qxe6 {[%clk 0:00:48.6]} 32... Qxe6 {[%clk 0:00:26.7]} 33.
Bxe6 {[%clk 0:00:49.2]} 33... Re7 {[%clk 0:00:28.6]} 34. d5 {[%clk 0:00:43.5]}
34... a6 {[%clk 0:00:28.5]} 35. Nd4 {[%clk 0:00:43]} 35... Rd6 {[%clk
0:00:28.7]} 36. Nc6 {[%clk 0:00:42.3]} 36... Rexe6 {[%clk 0:00:29.4]} 37. dxe6
{[%clk 0:00:42.4]} 37... Rxe6 {[%clk 0:00:31.3]} 38. Nb4 {[%clk 0:00:38.9]}
38... a5 {[%clk 0:00:31.4]} 39. Nd3 {[%clk 0:00:37.1]} 39... Rd6 {[%clk
0:00:31.8]} 40. Nf4 {[%clk 0:00:34.1]} 40... Rd4 {[%clk 0:00:32.7]} 41. Ne6+
{[%clk 0:00:34.5]} 1-0

[Event "*** Titled Tuesday Blitz"]
[Site "Chess.com"]
[Date "2018.04.03"]
[Round "2"]
[White "codapbg94"]
[Black "HanSchut"]
[Result "0-1"]
[WhiteElo "2044"]
[BlackElo "2216"]
[TimeControl "180+2"]
[EndTime "13:22:35 PDT"]
[Termination "HanSchut won by resignation"]

1. e4 {[%clk 0:02:58.7]} 1... c5 {[%clk 0:02:59.1]} 2. Nf3 {[%clk 0:02:59.2]}
2... d6 {[%clk 0:03:00.4]} 3. c3 {[%clk 0:02:56.6]} 3... Nf6 {[%clk 0:03:00.2]}
4. h3 {[%clk 0:02:56.6]} 4... e6 {[%clk 0:03:00.6]} 5. Bd3 {[%clk 0:02:54.3]}
5... Be7 {[%clk 0:03:00.7]} 6. Bc2 {[%clk 0:02:54.3]} 6... O-O {[%clk
0:03:01.6]} 7. d4 {[%clk 0:02:51.1]} 7... cxd4 {[%clk 0:03:01.4]} 8. cxd4 {[%clk
0:02:51.9]} 8... Nc6 {[%clk 0:03:02.6]} 9. Nc3 {[%clk 0:02:51.4]} 9... Bd7
{[%clk 0:03:02]} 10. O-O {[%clk 0:02:51.8]} 10... Rc8 {[%clk 0:03:02.1]} 11. Be3
{[%clk 0:02:45]} 11... a6 {[%clk 0:03:00.6]} 12. Rc1 {[%clk 0:02:43.2]} 12... b5
{[%clk 0:02:58.7]} 13. a3 {[%clk 0:02:43.5]} 13... Na5 {[%clk 0:02:59.4]} 14. e5
{[%clk 0:02:31.3]} 14... dxe5 {[%clk 0:02:59.6]} 15. dxe5 {[%clk 0:02:31.2]}
15... Nd5 {[%clk 0:02:56.9]} 16. Nxd5 {[%clk 0:02:30.1]} 16... exd5 {[%clk
0:02:57.9]} 17. Qxd5 {[%clk 0:02:21.3]} 17... Nc4 {[%clk 0:02:33.7]} 18. Bd4
{[%clk 0:02:19.4]} 18... Bc6 {[%clk 0:02:27.9]} 19. Qxd8 {[%clk 0:02:16.1]}
19... Rfxd8 {[%clk 0:02:29.8]} 20. Rfd1 {[%clk 0:02:11]} 20... Bxf3 {[%clk
0:02:23.9]} 21. gxf3 {[%clk 0:02:11.5]} 21... Bg5 {[%clk 0:02:21.5]} 22. Ra1
{[%clk 0:01:18.8]} 22... Nd2 {[%clk 0:02:10.1]} 23. Bc3 {[%clk 0:01:06.6]} 23...
Nxf3+ {[%clk 0:01:39.2]} 24. Kg2 {[%clk 0:01:07.1]} 24... Nh4+ {[%clk
0:01:32.2]} 25. Kg3 {[%clk 0:01:03]} 25... Ng6 {[%clk 0:01:31.8]} 26. Kg4 {[%clk
0:00:50.2]} 26... Be7 {[%clk 0:01:12.6]} 27. Bf5 {[%clk 0:00:46.3]} 27... Rc4+
{[%clk 0:01:07.8]} 28. Kg3 {[%clk 0:00:36.3]} 28... Bh4+ {[%clk 0:01:04.5]} 29.
Kh2 {[%clk 0:00:36.4]} 29... Re8 {[%clk 0:00:46.5]} 30. Rd5 {[%clk 0:00:28.2]}
30... Rf4 {[%clk 0:00:43.3]} 31. Rf1 {[%clk 0:00:28.2]} 31... Rxf2+ {[%clk
0:00:40.6]} 32. Rxf2 {[%clk 0:00:29.1]} 32... Bxf2 {[%clk 0:00:42.4]} 33. Bd7
{[%clk 0:00:30.2]} 33... Rd8 {[%clk 0:00:41.3]} 34. e6 {[%clk 0:00:25.3]} 34...
Bh4 {[%clk 0:00:31]} 35. exf7+ {[%clk 0:00:17.9]} 35... Kxf7 {[%clk 0:00:32.9]}
36. Be6+ {[%clk 0:00:18.8]} 36... Kxe6 {[%clk 0:00:33.1]} 37. Rxd8 {[%clk
0:00:19.2]} 37... Bxd8 {[%clk 0:00:34.9]} 38. Bxg7 {[%clk 0:00:20.6]} 38... Bc7+
{[%clk 0:00:35.9]} 39. Kg2 {[%clk 0:00:20.7]} 39... Be5 {[%clk 0:00:37.7]} 0-1

[Event "*** Titled Tuesday Blitz"]
[Site "Chess.com"]
[Date "2018.04.03"]
[Round "2"]
[White "TigranLPetrosyan"]
[Black "GMAkobianSTL"]
[Result "1-0"]
[WhiteElo "2665"]
[BlackElo "2629"]
[TimeControl "180+2"]
[EndTime "13:22:45 PDT"]
[Termination "TigranLPetrosyan won by resignation"]

1. g3 {[%clk 0:03:01.4]} 1... d5 {[%clk 0:02:59.7]} 2. Nf3 {[%clk 0:03:03.3]}
2... c6 {[%clk 0:02:58.4]} 3. Bg2 {[%clk 0:03:02.2]} 3... Nf6 {[%clk 0:02:57.5]}
4. c4 {[%clk 0:03:01.7]} 4... Bg4 {[%clk 0:02:49.6]} 5. Ne5 {[%clk 0:03:01.2]}
5... Bf5 {[%clk 0:02:48.1]} 6. cxd5 {[%clk 0:03:01.4]} 6... cxd5 {[%clk
0:02:48.5]} 7. Qb3 {[%clk 0:03:00.1]} 7... Bc8 {[%clk 0:02:49.1]} 8. O-O {[%clk
0:02:58.1]} 8... e6 {[%clk 0:02:47.4]} 9. d4 {[%clk 0:02:58.6]} 9... Be7 {[%clk
0:02:44.8]} 10. Bf4 {[%clk 0:02:58.1]} 10... O-O {[%clk 0:02:45.3]} 11. Rc1
{[%clk 0:02:59.5]} 11... Nbd7 {[%clk 0:02:43.2]} 12. Nc3 {[%clk 0:02:51.4]}
12... Nxe5 {[%clk 0:02:42.7]} 13. Bxe5 {[%clk 0:02:49.3]} 13... Bd6 {[%clk
0:01:59.4]} 14. e4 {[%clk 0:02:42.8]} 14... dxe4 {[%clk 0:01:43.7]} 15. Nxe4
{[%clk 0:02:43.2]} 15... Nxe4 {[%clk 0:01:38.6]} 16. Bxe4 {[%clk 0:02:45.1]}
16... f6 {[%clk 0:01:31.3]} 17. Rxc8 {[%clk 0:02:14.8]} 17... Rxc8 {[%clk
0:01:21.5]} 18. Qxe6+ {[%clk 0:02:15.2]} 18... Kh8 {[%clk 0:01:18.7]} 19. Bxd6
{[%clk 0:01:27.1]} 19... Re8 {[%clk 0:01:14.8]} 20. Qd5 {[%clk 0:01:27.8]} 20...
Rxe4 {[%clk 0:01:07.6]} 21. Qxe4 {[%clk 0:01:29.7]} 21... Qxd6 {[%clk
0:01:07.3]} 22. Qxb7 {[%clk 0:01:31.3]} 22... Rb8 {[%clk 0:01:01.2]} 23. Qxa7
{[%clk 0:01:32.4]} 23... Rxb2 {[%clk 0:01:01.6]} 24. Qc5 {[%clk 0:01:26.8]}
24... Qb8 {[%clk 0:00:29.2]} 25. a4 {[%clk 0:01:22.7]} 25... Rb1+ {[%clk
0:00:21.2]} 26. Rxb1 {[%clk 0:01:23.2]} 26... Qxb1+ {[%clk 0:00:21.8]} 27. Kg2
{[%clk 0:01:25.1]} 27... Qe4+ {[%clk 0:00:22.6]} 28. Kf1 {[%clk 0:01:24.6]}
28... h6 {[%clk 0:00:17.7]} 29. a5 {[%clk 0:01:21.7]} 29... Qd3+ {[%clk
0:00:15]} 30. Ke1 {[%clk 0:01:22.2]} 30... Qb1+ {[%clk 0:00:15.8]} 31. Kd2
{[%clk 0:01:22.9]} 31... Qa2+ {[%clk 0:00:16.6]} 32. Kc3 {[%clk 0:01:23.8]}
32... Qxf2 {[%clk 0:00:17.2]} 33. Kc4 {[%clk 0:00:57]} 33... Qxh2 {[%clk
0:00:15.5]} 34. Kb5 {[%clk 0:00:56.9]} 34... Qxg3 {[%clk 0:00:15.7]} 35. a6
{[%clk 0:00:57.9]} 35... Qb8+ {[%clk 0:00:16.1]} 36. Ka5 {[%clk 0:00:52.4]}
36... Kh7 {[%clk 0:00:12]} 37. a7 {[%clk 0:00:46.5]} 37... Qb7 {[%clk
0:00:13.1]} 38. d5 {[%clk 0:00:47.6]} 38... f5 {[%clk 0:00:13.5]} 39. d6 {[%clk
0:00:48.6]} 39... Kg6 {[%clk 0:00:14.1]} 40. d7 {[%clk 0:00:45.7]} 40... Qxd7
{[%clk 0:00:04.6]} 41. a8=Q {[%clk 0:00:44.4]} 1-0

[Event "*** Titled Tuesday Blitz"]
[Site "Chess.com"]
[Date "2018.04.03"]
[Round "2"]
[White "TheLancer"]
[Black "ruvat"]
[Result "1-0"]
[WhiteElo "2428"]
[BlackElo "2265"]
[TimeControl "180+2"]
[EndTime "13:22:50 PDT"]
[Termination "TheLancer won by resignation"]

1. e4 {[%clk 0:03:01.9]} 1... d6 {[%clk 0:03:00.3]} 2. d4 {[%clk 0:03:02.2]}
2... Nf6 {[%clk 0:03:01.4]} 3. Nc3 {[%clk 0:03:01.1]} 3... g6 {[%clk 0:03:02.3]}
4. h3 {[%clk 0:02:59.7]} 4... Bg7 {[%clk 0:03:02.7]} 5. Nf3 {[%clk 0:03:01]}
5... O-O {[%clk 0:03:03]} 6. Be3 {[%clk 0:02:58.5]} 6... c6 {[%clk 0:03:03.5]}
7. a4 {[%clk 0:02:55.2]} 7... Qc7 {[%clk 0:03:01.1]} 8. Be2 {[%clk 0:02:47.7]}
8... Nbd7 {[%clk 0:03:01.3]} 9. O-O {[%clk 0:02:48.1]} 9... b6 {[%clk
0:03:02.1]} 10. Re1 {[%clk 0:02:28.9]} 10... a6 {[%clk 0:02:53.2]} 11. Qd2
{[%clk 0:02:16.7]} 11... Rb8 {[%clk 0:02:49.2]} 12. e5 {[%clk 0:01:48.1]} 12...
Nd5 {[%clk 0:02:30.1]} 13. Nxd5 {[%clk 0:01:44.2]} 13... cxd5 {[%clk 0:02:31]}
14. exd6 {[%clk 0:01:45.6]} 14... exd6 {[%clk 0:02:27.9]} 15. Bh6 {[%clk
0:01:30.4]} 15... Nf6 {[%clk 0:02:26.8]} 16. Bd3 {[%clk 0:01:22.3]} 16... Bb7
{[%clk 0:02:13.2]} 17. Bxg7 {[%clk 0:01:13.8]} 17... Kxg7 {[%clk 0:02:13.3]} 18.
c3 {[%clk 0:00:57.8]} 18... Rfe8 {[%clk 0:02:13.4]} 19. Qf4 {[%clk 0:00:52.5]}
19... Rxe1+ {[%clk 0:01:54.1]} 20. Rxe1 {[%clk 0:00:52.6]} 20... Re8 {[%clk
0:01:54.9]} 21. Rxe8 {[%clk 0:00:47.7]} 21... Nxe8 {[%clk 0:01:56.8]} 22. h4
{[%clk 0:00:33.1]} 22... Nf6 {[%clk 0:01:51.6]} 23. g4 {[%clk 0:00:30.4]} 23...
Qe7 {[%clk 0:01:47.2]} 24. h5 {[%clk 0:00:21.2]} 24... Qe6 {[%clk 0:01:09.8]}
25. h6+ {[%clk 0:00:21.7]} 25... Kg8 {[%clk 0:01:06.8]} 26. g5 {[%clk
0:00:18.8]} 26... Qg4+ {[%clk 0:00:55.1]} 27. Qxg4 {[%clk 0:00:19.6]} 27... Nxg4
{[%clk 0:00:56.7]} 28. Kg2 {[%clk 0:00:18.9]} 28... f6 {[%clk 0:00:54.7]} 29.
Kg3 {[%clk 0:00:20]} 29... Bc8 {[%clk 0:00:51.9]} 30. Bxa6 {[%clk 0:00:19.9]}
30... Be6 {[%clk 0:00:31.9]} 31. b4 {[%clk 0:00:16.2]} 31... Kf7 {[%clk
0:00:20.6]} 32. a5 {[%clk 0:00:15.9]} 32... bxa5 {[%clk 0:00:20.4]} 33. bxa5
{[%clk 0:00:17.8]} 33... Ke7 {[%clk 0:00:17.1]} 34. Bb7 {[%clk 0:00:17]} 34...
fxg5 {[%clk 0:00:14.9]} 35. a6 {[%clk 0:00:18.1]} 35... Nxh6 {[%clk 0:00:16.4]}
36. a7 {[%clk 0:00:18.4]} 36... Nf5+ {[%clk 0:00:18]} 37. Kh2 {[%clk 0:00:19.4]}
37... g4 {[%clk 0:00:18.9]} 38. Ng5 {[%clk 0:00:18.9]} 1-0

[Event "*** Titled Tuesday Blitz"]
[Site "Chess.com"]
[Date "2018.04.03"]
[Round "2"]
[White "Karina_Oparina"]
[Black "EmeseBalogh"]
[Result "1-0"]
[WhiteElo "2144"]
[BlackElo "1969"]
[TimeControl "180+2"]
[EndTime "13:22:51 PDT"]
[Termination "Karina_Oparina won by resignation"]

1. Nf3 {[%clk 0:02:57.5]} 1... d5 {[%clk 0:02:56.7]} 2. g3 {[%clk 0:02:57.9]}
2... c6 {[%clk 0:02:56.5]} 3. Bg2 {[%clk 0:02:58.3]} 3... Bg4 {[%clk 0:02:55.8]}
4. O-O {[%clk 0:02:58]} 4... Nf6 {[%clk 0:02:52.9]} 5. h3 {[%clk 0:02:57.1]}
5... Bxf3 {[%clk 0:02:53.8]} 6. Bxf3 {[%clk 0:02:57.7]} 6... e6 {[%clk
0:02:55.4]} 7. d3 {[%clk 0:02:57.4]} 7... Bd6 {[%clk 0:02:57]} 8. c4 {[%clk
0:02:56.6]} 8... Nbd7 {[%clk 0:02:58.2]} 9. Qb3 {[%clk 0:02:51]} 9... Qb6 {[%clk
0:02:58.4]} 10. Qxb6 {[%clk 0:02:33.5]} 10... axb6 {[%clk 0:03:00.2]} 11. cxd5
{[%clk 0:02:33.7]} 11... exd5 {[%clk 0:02:48]} 12. Nc3 {[%clk 0:02:33.7]} 12...
O-O {[%clk 0:02:47.1]} 13. Bd2 {[%clk 0:02:30.7]} 13... Rfe8 {[%clk 0:02:47.4]}
14. a3 {[%clk 0:02:19.7]} 14... h6 {[%clk 0:02:31.7]} 15. b4 {[%clk 0:02:06.1]}
15... Ne5 {[%clk 0:02:29.9]} 16. Bg2 {[%clk 0:02:04.7]} 16... b5 {[%clk
0:02:31.1]} 17. f4 {[%clk 0:01:59.2]} 17... Ned7 {[%clk 0:02:29.2]} 18. Kf2
{[%clk 0:01:52.5]} 18... Ra6 {[%clk 0:02:27.9]} 19. e4 {[%clk 0:01:49.3]} 19...
dxe4 {[%clk 0:02:28.3]} 20. dxe4 {[%clk 0:01:47.7]} 20... Bc7 {[%clk 0:02:29.3]}
21. e5 {[%clk 0:01:47.6]} 21... Bb6+ {[%clk 0:02:30]} 22. Be3 {[%clk 0:01:35.3]}
22... Bxe3+ {[%clk 0:02:30.2]} 23. Kxe3 {[%clk 0:01:36]} 23... Raa8 {[%clk
0:02:05.7]} 24. Kf2 {[%clk 0:01:33.9]} 24... Nh5 {[%clk 0:02:02.5]} 25. Ne4
{[%clk 0:01:17.4]} 25... Re7 {[%clk 0:01:56.4]} 26. Nd6 {[%clk 0:01:16.5]} 26...
Nb6 {[%clk 0:01:56.9]} 27. Rfd1 {[%clk 0:01:04.6]} 27... g5 {[%clk 0:01:56.4]}
28. Bf3 {[%clk 0:01:02.8]} 28... Ng7 {[%clk 0:01:55.3]} 29. Be2 {[%clk
0:00:54.3]} 29... Nd5 {[%clk 0:01:50.3]} 30. Ne4 {[%clk 0:00:47.2]} 30... gxf4
{[%clk 0:01:50]} 31. Nf6+ {[%clk 0:00:47.7]} 31... Nxf6 {[%clk 0:01:46.2]} 32.
exf6 {[%clk 0:00:48]} 32... fxg3+ {[%clk 0:01:47.2]} 33. Kf1 {[%clk 0:00:43.6]}
33... Rxe2 {[%clk 0:01:39.8]} 34. Kxe2 {[%clk 0:00:43.7]} 34... Re8+ {[%clk
0:01:40.6]} 35. Kf3 {[%clk 0:00:42]} 35... Nf5 {[%clk 0:01:41.5]} 36. Re1 {[%clk
0:00:41.9]} 36... Nd4+ {[%clk 0:01:42.2]} 37. Kxg3 {[%clk 0:00:41.4]} 37... Rd8
{[%clk 0:01:35.7]} 38. Kf2 {[%clk 0:00:36.2]} 38... Rd6 {[%clk 0:01:29.9]} 39.
Re8+ {[%clk 0:00:31.7]} 39... Kh7 {[%clk 0:01:30.5]} 40. Re7 {[%clk 0:00:32]}
40... Kg6 {[%clk 0:01:30.3]} 41. Rxb7 {[%clk 0:00:31.7]} 41... Kxf6 {[%clk
0:01:31.3]} 42. a4 {[%clk 0:00:30.2]} 42... Nc2 {[%clk 0:01:27.1]} 43. Rc1
{[%clk 0:00:25.4]} 43... Rd2+ {[%clk 0:01:26.9]} 44. Kg3 {[%clk 0:00:23.7]}
44... Rd3+ {[%clk 0:01:20.8]} 45. Kg2 {[%clk 0:00:21.4]} 45... Nxb4 {[%clk
0:01:21.7]} 46. axb5 {[%clk 0:00:21]} 46... cxb5 {[%clk 0:01:22.8]} 47. Rxb5
{[%clk 0:00:21.3]} 47... Nd5 {[%clk 0:01:23.6]} 48. Rc6+ {[%clk 0:00:21]} 48...
Ke5 {[%clk 0:01:21]} 49. Rxh6 {[%clk 0:00:20.1]} 49... Ke4 {[%clk 0:01:20.5]}
50. Rh4+ {[%clk 0:00:20.4]} 50... Nf4+ {[%clk 0:01:21.6]} 51. Kf2 {[%clk
0:00:19.4]} 51... f5 {[%clk 0:01:20.7]} 52. Rb4+ {[%clk 0:00:20.1]} 52... Ke5
{[%clk 0:01:18.4]} 53. Rhxf4 {[%clk 0:00:20.9]} 53... Ra3 {[%clk 0:01:19.3]} 54.
Rf3 {[%clk 0:00:21.3]} 54... Ra2+ {[%clk 0:01:19.8]} 55. Kg3 {[%clk 0:00:22.1]}
1-0

[Event "*** Titled Tuesday Blitz"]
[Site "Chess.com"]
[Date "2018.04.03"]
[Round "2"]
[White "kasparik_garik"]
[Black "SergeiAza"]
[Result "1/2-1/2"]
[WhiteElo "2520"]
[BlackElo "2669"]
[TimeControl "180+2"]
[EndTime "13:22:54 PDT"]
[Termination "Game drawn by repetition"]

1. Nf3 {[%clk 0:02:58.5]} 1... Nf6 {[%clk 0:03:00.4]} 2. g3 {[%clk 0:02:59.2]}
2... b5 {[%clk 0:03:00.8]} 3. Bg2 {[%clk 0:02:57.3]} 3... Bb7 {[%clk 0:03:02.3]}
4. O-O {[%clk 0:02:58]} 4... e6 {[%clk 0:03:03.1]} 5. d3 {[%clk 0:02:57.3]} 5...
c5 {[%clk 0:03:03.2]} 6. e4 {[%clk 0:02:58.1]} 6... d6 {[%clk 0:03:01.9]} 7. a4
{[%clk 0:02:52.7]} 7... b4 {[%clk 0:02:56.8]} 8. Nbd2 {[%clk 0:02:48.5]} 8...
Be7 {[%clk 0:02:54.4]} 9. Re1 {[%clk 0:02:49.4]} 9... O-O {[%clk 0:02:53.4]} 10.
Nc4 {[%clk 0:02:48.9]} 10... Nfd7 {[%clk 0:02:37.9]} 11. h4 {[%clk 0:02:36.8]}
11... Nc6 {[%clk 0:02:31.8]} 12. Bg5 {[%clk 0:02:34.5]} 12... h6 {[%clk
0:02:27.8]} 13. Bxe7 {[%clk 0:02:33.1]} 13... Qxe7 {[%clk 0:02:28.5]} 14. e5
{[%clk 0:02:33.9]} 14... Ncxe5 {[%clk 0:02:14.1]} 15. Nfxe5 {[%clk 0:02:28.7]}
15... Nxe5 {[%clk 0:02:14.7]} 16. Nxe5 {[%clk 0:02:26.8]} 16... Bxg2 {[%clk
0:02:11]} 17. Kxg2 {[%clk 0:02:27.5]} 17... dxe5 {[%clk 0:02:10.6]} 18. Rxe5
{[%clk 0:02:27.7]} 18... b3 {[%clk 0:01:53.5]} 19. cxb3 {[%clk 0:02:10.5]} 19...
Qd6 {[%clk 0:01:30.6]} 20. Re3 {[%clk 0:01:53.8]} 20... Rab8 {[%clk 0:01:29.3]}
21. Rc1 {[%clk 0:01:43.7]} 21... Qd5+ {[%clk 0:01:19]} 22. Kg1 {[%clk
0:01:42.7]} 22... Rxb3 {[%clk 0:01:04.6]} 23. Rxc5 {[%clk 0:01:39.6]} 23... Qb7
{[%clk 0:01:05.1]} 24. Qf3 {[%clk 0:01:25.3]} 24... Rxb2 {[%clk 0:00:58.7]} 25.
Qxb7 {[%clk 0:01:25.3]} 25... Rxb7 {[%clk 0:01:00.2]} 26. Ra5 {[%clk 0:01:09.7]}
26... Rd8 {[%clk 0:01:00.4]} 27. Kg2 {[%clk 0:01:08.4]} 27... Rd4 {[%clk
0:00:57.6]} 28. Ra6 {[%clk 0:01:01.1]} 28... g6 {[%clk 0:00:52.9]} 29. Kf3
{[%clk 0:01:00.8]} 29... h5 {[%clk 0:00:39.9]} 30. Kg2 {[%clk 0:01:00.5]} 30...
Kg7 {[%clk 0:00:40.3]} 31. Kf3 {[%clk 0:01:01.4]} 31... Rd5 {[%clk 0:00:39.6]}
32. Kg2 {[%clk 0:01:00.2]} 32... Rc5 {[%clk 0:00:37.6]} 33. Rf3 {[%clk
0:00:57.8]} 33... Rc2 {[%clk 0:00:35.7]} 34. Re3 {[%clk 0:00:56.1]} 34... Ra2
{[%clk 0:00:36]} 35. Rf3 {[%clk 0:00:56.5]} 35... Rd7 {[%clk 0:00:36]} 36. Re3
{[%clk 0:00:56.8]} 36... Ra3 {[%clk 0:00:36]} 37. Rf3 {[%clk 0:00:57.2]} 37...
Ra2 {[%clk 0:00:28.9]} 38. Re3 {[%clk 0:00:53.7]} 38... Ra3 {[%clk 0:00:23.2]}
39. Rf3 {[%clk 0:00:53.8]} 39... Ra2 {[%clk 0:00:20.5]} 40. Re3 {[%clk
0:00:46.5]} 40... Ra3 {[%clk 0:00:21.4]} 41. Rf3 {[%clk 0:00:42.8]} 41... Ra2
{[%clk 0:00:22.4]} 42. Re3 {[%clk 0:00:43.7]} 42... Ra3 {[%clk 0:00:23.3]} 43.
Rf3 {[%clk 0:00:44.9]} 43... Ra2 {[%clk 0:00:24.4]} 1/2-1/2